[Event "Czech Extraliga 2024-25"]
[Site "Czechia"]
[Date "2024.11.03"]
[Round "2.6"]
[White "Mladek, Richard"]
[Black "Klement, Lukas"]
[Result "1-0"]
[ECO "E18"]
[WhiteElo "2387"]
[BlackElo "2271"]
[Annotator "RC"]
[PlyCount "91"]
[EventDate "2024.09.12"]
[EventType "team-tourn"]
[EventCountry "CZE"]
[SourceTitle "playchess.com"]
[Source "ChessBase"]
[SourceQuality "1"]
[TimeControl "40/5400+30:1800+30"]

1. d4 {[%emt 0:00:01]} Nf6 {[%emt 0:00:45]} 2. c4 {[%emt 0:00:09]} e6 {[%emt 0:00:29]} 3. Nf3 {[%emt 0:00:05]} b6 {[%emt 0:01:18]} 4. g3 {[%emt 0:00:23]} Bb7 {[%emt 0:00:44]} 5. Bg2 {[%emt 0:00:06]} Bb4+ {[%emt 0:01:09]} 6. Bd2 {[%emt 0:00:08]} Be7 {[%emt 0:00:31]} 7. Nc3 {[%emt 0:04:26]} O-O {[%emt 0:05:14]} 8. O-O {[%emt 0:01:20]} Ne4 {[%emt 0:05:29]} 9. Qc2 {[%emt 0:03:58]} Nxd2 {[%emt 0:08:25]} 10. Qxd2 {[%emt 0:03:13]} d6 {[%emt 0:04:43]} 11. e4 {[%emt 0:01:36]} Nd7 {[%emt 0:03:53]} 12. Rad1 {[%emt 0:01:12]} a6 {[%emt 0:13:22]} 13. Qc2 {[%emt 0:03:39]} c6 {[%emt 0:14:02]} 14. a3 {[%emt 0:07:55]} Qc7 {[%emt 0:00:44]} 15. Rfe1 {[%emt 0:03:16]} e5 {[%emt 0:11:47]} 16. Bh3 {[%emt 0:16:57]} Rad8 {[%emt 0:07:11]} 17. Qb3 {[%emt 0:02:34]} exd4 {[%emt 0:05:45]} 18. Nxd4 {[%emt 0:00:47]} g6 {[%emt 0:00:37]} 19. Rd2 {[%emt 0:10:38]} Rfe8 {[%emt 0:02:16]} 20. Bg2 {[%emt 0:05:01]} Bf8 {[%emt 0:01:41]} 21. Red1 {[%emt 0:04:05]} Ne5 {[%emt 0:03:06]} 22. h3 {[%emt 0:02:20]} b5 {[%emt 0:00:40]} 23. cxb5 {[%emt 0:01:00]} axb5 {[%emt 0:00:10]} 24. a4 {[%emt 0:06:51]} Nc4 {[%emt 0:00:55]} 25. Rc2 {[%emt 0:00:44]} Na5 {[%emt 0:01:02]} 26. Qa2 {[%emt 0:01:13]} Qb6 {[%emt 0:04:43]} 27. b4 {[%emt 0:02:39]} Nc4 {[%emt 0:00:30]} 28. axb5 {[%emt 0:00:06]} cxb5 {[%emt 0:00:54]} 29. Ncxb5 {[%emt 0:00:16]} Ne5 {[%emt 0:00:50]} 30. Nc7 {[%emt 0:03:35]} Re7 {[%emt 0:00:16]} 31. Qa5 {[%emt 0:02:14]} Nd7 {[%emt 0:01:29]} 32. Nd5 {[%emt 0:01:38]} Bxd5 {[%emt 0:00:09]} 33. Qxb6 {[%emt 0:01:32]} Nxb6 {[%emt 0:00:01]} 34. exd5 {[%emt 0:00:07]} Rb7 {[%emt 0:00:39]} 35. Re1 {[%emt 0:02:05]} Ra8 {[%emt 0:00:36]} 36. Nc6 {[%emt 0:00:24]} Bg7 {[%emt 0:01:21]} 37. Na5 {[%emt 0:01:03]} Rd7 {[%emt 0:00:43]} 38. h4 {[%emt 0:02:57]} Bf6 {[%emt 0:00:19]} 39. Rc6 {[%emt 0:02:56]} Rb8 {[%emt 0:00:15]} 40. Rec1 {[%emt 0:02:13]} Bb2 {[%emt 0:01:07]} 41. Rb1 {[%emt 0:05:46]} Bf6 {[%emt 0:04:21]} 42. Rc2 {[%emt 0:05:36]} Ra8 {[%emt 0:06:02]} 43. Rbc1 {[%emt 0:00:50]} Raa7 {[%emt 0:04:18]} 44. Bh3 {[%emt 0:02:34]} Re7 {[%emt 0:01:10]} 45. Nc6 {[%emt 0:00:21]} Nxd5 {[%emt 0:00:06]} 46. Bg2 {[%emt 0:00:51]} 1-0

[Event "Czech Extraliga 2024-25"]
[Site "Czechia"]
[Date "2024.11.03"]
[Round "2.6"]
[White "Brozka, Karel"]
[Black "Baklan, Vladimir"]
[Result "1-0"]
[ECO "E11"]
[WhiteElo "2188"]
[BlackElo "2541"]
[Annotator "TA"]
[PlyCount "79"]
[EventDate "2024.09.12"]
[EventType "team-tourn"]
[EventCountry "CZE"]
[SourceTitle "playchess.com"]
[Source "ChessBase"]
[SourceQuality "1"]
[TimeControl "40/5400+30:1800+30"]

{[%evp 9,79,25,54,37,43,23,22,25,31,10,32,35,27,40,27,27,39,11,17,27,37,14,22,18,26,20,19,19,19,4,13,8,29,27,43,0,0,0,0,12,19,16,37,0,0,0,0,0,0,0,28,34,21,13,27,0,0,0,0,-6,-6,-6,0,0,0,-11,-11,-528,0,0,0,0]} 1. d4 {[%emt 0:00:05]} Nf6 {[%emt 0:00:05]} 2. c4 {[%emt 0:00:13]} e6 {[%emt 0:01:14]} 3. Nf3 {[%emt 0:00:11]} Bb4+ {[%emt 0:02:29]} 4. Bd2 {[%emt 0:00:15]} a5 {[%emt 0:00:03]} 5. a3 {[%emt 0:00:28]} Be7 {[%emt 0:03:55]} 6. Nc3 {[%emt 0:02:30]} d5 {[%emt 0:00:05]} 7. Bg5 {[%emt 0:03:12]} O-O {[%emt 0:09:22]} 8. e3 {[%emt 0:02:40]} Nbd7 {[%emt 0:02:45]} 9. cxd5 {[%emt 0:03:55]} exd5 {[%emt 0:08:16]} 10. Bd3 {[%emt 0:02:00]} c6 {[%emt 0:02:43]} 11. Qc2 {[%emt 0:01:58]} h6 {[%emt 0:01:21]} 12. Bh4 {[%emt 0:01:52]} b5 {[%emt 0:00:32][%cal Bb7b5,Bb5b4][%mdl 32]} 13. a4 {[%emt 0:08:03]} b4 {[%emt 0:07:19]} 14. Ne2 {[%emt 0:00:59]} c5 {[%emt 0:06:59]} 15. dxc5 {[%emt 0:04:14]} Nxc5 {[%emt 0:06:15]} 16. Bb5 {[%emt 0:14:25] Threatens to win with Bxf6.} Nfe4 {[%emt 0:04:10]} 17. Bxe7 {[%emt 0:01:41]} Qxe7 {[%emt 0:00:03]} 18. Nfd4 {[%emt 0:01:43]} Bb7 {[%emt 0:03:21]} 19. O-O {[%emt 0:04:20]} Rac8 {[%emt 0:00:15]} 20. Qd1 {[%emt 0:01:12]} Nd6 {[%emt 0:09:18]} 21. Nf4 {[%emt 0:04:56]} Rfd8 {[%emt 0:02:47]} 22. Qg4 {[%emt 0:05:56]} Qg5 {[%emt 0:02:14]} 23. Qxg5 {[%emt 0:11:42]} hxg5 {[%emt 0:00:53]} 24. Nd3 {[%emt 0:02:16]} Ne6 {[%emt 0:04:04]} 25. Rfc1 {[%emt 0:02:24]} Nc4 {[%emt 0:06:06]} 26. Rc2 {[%emt 0:00:43]} Nxd4 {[%emt 0:00:32]} 27. exd4 {[%emt 0:00:14]} Bc6 {[%emt 0:00:02]} 28. Bxc4 {[%emt 0:10:01]} dxc4 {[%emt 0:00:11]} 29. Rxc4 {[%emt 0:00:09]} Bd5 {[%emt 0:10:55]} 30. Rxc8 {[%emt 0:00:22]} Rxc8 $11 {[%emt 0:00:03][%mdl 4096] Endgame. KRB-KRN} 31. Rc1 {[%emt 0:00:30]} Rd8 {[%emt 0:00:32]} 32. Nc5 {[%emt 0:01:29]} Re8 {[%emt 0:00:16]} 33. Kf1 {[%emt 0:00:30] Wards off Re2} g4 {[%emt 0:00:53]} 34. b3 {[%emt 0:00:13]} f5 {[%emt 0:03:25][%cal Bf7f5,Bf5f4,Bf4f3][%mdl 32]} 35. Rd1 {[%emt 0:04:28]} Re7 {[%emt 0:01:35]} 36. Rd3 {[%emt 0:00:26]} f4 {[%emt 0:00:04]} 37. h3 {[%emt 0:04:01]} f3 {[%emt 0:03:02]} 38. Re3 $2 {[%emt 0:02:12][%mdl 8192] [#]} (38. gxf3 $11 {and White stays safe.} Bxf3 (38... gxh3 39. Kg1 $11) 39. Re3 Rxe3 40. fxe3 gxh3 41. Kg1) 38... gxh3 $2 {[%emt 0:00:52]} 39. gxh3 {[%emt 0:00:19]} (39. Rxe7 $2 {is the wrong capture.} h2 (39... fxg2+ $2 {perishes.} 40. Kg1 $18) 40. Re8+ Kf7 $19) 39... Kf7 {[%emt 0:00:05]} 40. Ke1 {[%emt 0:01:01][%mdl 32768] Weighted Error Value: White=0.24 (precise) /Black=0.23 (precise) .  Loses game:     	White=1     	---        Missed win:     	---       	Black=1      Inaccurate:     	White=4     	Black=1      OK:         	White=17    	Black=12     Best:        	White=1     	Black=2     . Sensor Board Error (Ke4/e5)?} 1-0

[Event "Czech Extraliga 2024-25"]
[Site "Czechia"]
[Date "2024.11.03"]
[Round "2.7"]
[White "Vlasak, Lukas"]
[Black "Jares, Michal"]
[Result "1-0"]
[ECO "B12"]
[WhiteElo "2458"]
[BlackElo "2285"]
[Annotator "TA"]
[PlyCount "85"]
[EventDate "2024.09.12"]
[EventType "team-tourn"]
[EventCountry "CZE"]
[SourceTitle "playchess.com"]
[Source "ChessBase"]
[SourceQuality "1"]
[TimeControl "40/5400+30:1800+30"]

{[%evp 13,85,23,8,27,38,21,38,36,40,53,54,41,41,36,35,31,23,25,50,65,49,40,77,66,217,223,335,334,420,407,432,406,406,437,424,440,433,433,445,434,485,464,488,481,488,488,666,660,855,823,822,852,1322,1282,1025,892,942,900,1862,1725,2173,1802,1729,1606,29980,29981,29981,29982,29984,29985,29985,29986,29986,29987]} 1. e4 {[%emt 0:00:22]} c6 {[%emt 0:00:01]} 2. d4 {[%emt 0:00:12]} d5 {[%emt 0:00:02]} 3. e5 {[%emt 0:00:19]} Bf5 {[%emt 0:00:03]} 4. Nf3 {[%emt 0:00:30]} e6 {[%emt 0:00:02]} 5. Be2 {[%emt 0:00:16]} Ne7 {[%emt 0:00:03]} 6. O-O {[%emt 0:01:16]} c5 {[%emt 0:00:03]} 7. c4 {[%emt 0:02:35]} Nbc6 {[%emt 0:00:02]} 8. dxc5 {[%emt 0:00:29]} d4 {[%emt 0:00:07] ...d3 would now be deadly.} 9. Qb3 {[%emt 0:00:17]} Ng6 {[%emt 0:00:26]} 10. Qxb7 {[%emt 0:03:25] White is slightly better.} Qc8 {[%emt 0:00:03]} 11. Qxc8+ {[%emt 0:08:05]} Rxc8 {[%emt 0:00:01]} 12. a3 $1 {[%emt 0:04:08]} a5 {[%emt 0:00:03] [#]} (12... Ncxe5 $2 13. Nxd4 Bxc5 14. Nxf5 exf5 15. Nc3 $18) 13. b4 $1 {[%emt 0:00:24]} axb4 {[%emt 0:00:01]} (13... Ncxe5 14. Nxd4 (14. bxa5 Bxc5 15. Nbd2 Ke7 $11) 14... Bd3 15. Bxd3 (15. bxa5 Bxc5 16. Bxd3 Bxd4 $17) 15... Nxd3 16. Bd2 $18 (16. bxa5 Nge5 $16)) 14. axb4 {[%emt 0:00:16]} Nxb4 {[%emt 0:00:03]} 15. Nxd4 {[%emt 0:00:15]} Bd3 {[%emt 0:00:49]} 16. Bxd3 {[%emt 0:18:32]} Nxd3 {[%emt 0:00:03]} 17. c6 {[%emt 0:00:39] aiming for Nb5.} (17. Ba3 {simplifies} Bxc5 18. Bxc5 Nxc5 19. f4) 17... Ngxe5 {[%emt 0:20:25][%cal Of8c5] [#]} 18. Ba3 $1 {[%emt 0:04:47]} Nb4 $2 {[%emt 0:24:20] Loses the game.} ({Better is} 18... Nxc6 $14 19. Nxc6 Rxc6) 19. c7 $1 $18 {[%emt 0:07:15]} Ned3 {[%emt 0:18:58]} (19... Be7 $142 20. Nb5 Nc2) 20. Nb5 {[%emt 0:04:49]} Be7 {[%emt 0:06:36]} 21. N1c3 {[%emt 0:10:15]} Nc2 {[%emt 0:02:38] [#]} 22. Bxe7 {[%emt 0:00:20]} Kxe7 {[%emt 0:01:10]} 23. Ra7 {[%emt 0:01:57]} Ncb4 {[%emt 0:01:47]} 24. Ne4 {[%emt 0:03:29]} Nc6 {[%emt 0:01:26]} 25. Ra3 {[%emt 0:01:08]} Nde5 {[%emt 0:05:01]} 26. c5 {[%emt 0:03:07]} (26. Ned6 Rxc7 27. c5 (27. Nxc7 Kxd6 28. Nb5+ Ke7 $18) 27... Rd7 $16) 26... Nc4 {[%emt 0:03:35]} 27. Ra4 {[%emt 0:02:38]} f5 {[%emt 0:03:49]} 28. Rxc4 {[%emt 0:01:48]} fxe4 {[%emt 0:00:02]} 29. Rxe4 {[%emt 0:00:15]} Rhf8 {[%emt 0:00:51]} 30. Rd1 {[%emt 0:01:28]} e5 {[%emt 0:02:05]} 31. Rd6 {[%emt 0:03:40]} Rf6 {[%emt 0:00:19] [#]} 32. f4 $1 {[%emt 0:00:30][%cal Bf2f4,Bf4f5][%mdl 32]} Re6 {[%emt 0:02:27]} (32... Rcf8 33. h3) 33. f5 {[%emt 0:02:03]} Rf6 {[%emt 0:01:44]} 34. g4 {[%emt 0:00:10][%cal Bg2g4,Bg4g5][%mdl 32]} h6 {[%emt 0:00:47][%cal Bh7h6,Bh6h5][%mdl 32]} 35. h4 {[%emt 0:01:32]} h5 {[%emt 0:01:17]} 36. g5 {[%emt 0:00:52]} Rxd6 {[%emt 0:00:08]} 37. cxd6+ {[%emt 0:00:08][%mdl 4096] Endgame. KRN-KRN} Kd7 {[%emt 0:00:09]} 38. Rc4 {[%emt 0:00:56][%cal Oc4c6] White threatens Rxc6! and mate.} Ra8 {[%emt 0:01:43] [#]} 39. Rxc6 $1 {[%emt 0:00:27] White mates.} Kxc6 {[%emt 0:00:02]} 40. Na7+ {[%emt 0:00:33]} Kd7 {[%emt 0:00:47]} 41. c8=Q+ {[%emt 0:30:07]} Rxc8 {[%emt 0:30:08]} 42. Nxc8 {[%emt 0:00:07]} Kxc8 {[%emt 0:00:07]} 43. f6 {[%emt 0:00:07] Weighted Error Value: White=0.01 (flawless) /Black=0.41.  Mistake:       	---       	Black=2      Inaccurate:     	---       	Black=2      OK:         	White=13    	Black=7      Best:        	White=3     	---        Strong:       	White=3     	---} 1-0

[Event "Czech Extraliga 2024-25"]
[Site "Czechia"]
[Date "2024.11.03"]
[Round "2.7"]
[White "Gnojek, Petr"]
[Black "Kriebel, Tadeas"]
[Result "1/2-1/2"]
[ECO "A79"]
[WhiteElo "2420"]
[BlackElo "2512"]
[Annotator "TA"]
[PlyCount "238"]
[EventDate "2024.09.12"]
[EventType "team-tourn"]
[EventCountry "CZE"]
[SourceTitle "playchess.com"]
[Source "ChessBase"]
[SourceQuality "1"]
[TimeControl "40/5400+30:1800+30"]

{[%evp 27,238,6,14,0,8,0,0,0,0,17,0,0,25,35,27,16,42,12,0,0,0,0,46,46,64,62,73,0,0,0,59,0,0,-39,-50,-104,-104,-82,-110,-98,-101,-167,-70,-123,-60,-72,-76,-92,0,0,0,0,99,97,99,98,106,114,710,717,761,754,925,1943,6094,6087,5615,5620,29971,29972,2991,568,144,560,541,560,553,553,545,81,539,545,551,544,529,529,4132,76,77,77,152,152,159,159,149,74,74,81,90,69,69,69,69,69,69,69,66,66,63,63,63,63,63,63,63,63,63,63,63,63,63,63,63,63,63,63,63,63,63,63,63,63,63,63,63,63,63,63,63,63,63,63,63,63,63,63,63,63,63,63,63,63,63,63,63,63,63,63,63,63,63,70,70,70,70,66,66,36,36,8,8,0,0,0,0,0,0,0,0,0,0,0,0,0,0,0,0,0,3,0,0,0,0,0,0,0,0,0,0,0,0,0,0,0,0,0,0,0,0,0,0,0,0]} 1. d4 {[%emt 0:00:04]} Nf6 {[%emt 0:00:18]} 2. c4 {[%emt 0:00:11]} c5 {[%emt 0:00:18]} 3. d5 {[%emt 0:00:09]} e6 {[%emt 0:00:06]} 4. Nc3 {[%emt 0:00:13]} exd5 {[%emt 0:00:05]} 5. cxd5 {[%emt 0:00:05]} d6 {[%emt 0:00:03]} 6. Nf3 {[%emt 0:02:58]} g6 {[%emt 0:00:06]} 7. Nd2 {[%emt 0:00:07]} Bg7 {[%emt 0:00:19]} 8. e4 {[%emt 0:00:11]} O-O {[%emt 0:00:05]} 9. Be2 {[%emt 0:00:08]} Re8 {[%emt 0:00:41]} 10. O-O {[%emt 0:00:13]} Na6 {[%emt 0:00:11]} 11. f3 {[%emt 0:12:37]} Nc7 {[%emt 0:00:05]} 12. a4 {[%emt 0:00:20]} b6 {[%emt 0:00:42]} 13. Nc4 {[%emt 0:12:57]} Ba6 {[%emt 0:00:34]} 14. Ne3 {[%emt 0:11:12]} Bxe2 {[%emt 0:01:03]} 15. Qxe2 {[%emt 0:00:07]} a6 {[%emt 0:00:21]} 16. Rd1 {[%emt 0:09:49]} Rb8 {[%emt 0:19:07]} 17. Nc4 {[%emt 0:01:25][%cal Be3c4,Bc4a5,Ba5c6][%mdl 32]} b5 {[%emt 0:10:38]} 18. axb5 {[%emt 0:00:37]} axb5 {[%emt 0:00:34]} 19. Na5 {[%emt 0:00:06]} Qd7 {[%emt 0:10:11]} 20. Nc6 {[%emt 0:00:43]} Rb7 {[%emt 0:00:16]} 21. Qc2 $36 {[%emt 0:04:05][%mdl 2048] Black is under pressure.} Nh5 {[%emt 0:11:24]} 22. g4 {[%emt 0:08:44]} Nf6 {[%emt 0:00:05]} 23. Qg2 {[%emt 0:00:18]} b4 {[%emt 0:02:52]} 24. Ne2 {[%emt 0:03:04]} Kh8 {[%emt 0:21:11]} (24... Nb5 $11) 25. Ng3 $14 {[%emt 0:10:54]} Ng8 {[%emt 0:01:20]} 26. Bf4 {[%emt 0:00:40]} Nb5 {[%emt 0:02:50]} 27. Ra6 {[%emt 0:07:52]} Nc7 $1 {[%emt 0:01:44]} 28. Raa1 {[%emt 0:00:05]} Nb5 $1 {[%emt 0:00:04]} 29. Ra6 {[%emt 0:00:03]} (29. Na5 $14) 29... Nc7 $11 {[%emt 0:00:04]} 30. Ra4 {[%emt 0:05:35]} Ne7 {[%emt 0:00:27][%cal Oe7d5] White must now prevent ...Nexd5!} 31. b3 {[%emt 0:03:04]} ({White should try} 31. Raa1 $15) 31... Nxc6 $17 {[%emt 0:00:59]} 32. dxc6 {[%emt 0:00:04]} Qxc6 {[%emt 0:00:04]} 33. Rxd6 {[%emt 0:00:23]} Qb5 {[%emt 0:00:25]} 34. Qe2 {[%emt 0:06:09] Prevents c4.} (34. Be3 $17) 34... Ne6 {[%emt 0:01:39]} (34... c4 $1 $19 {[%cal Rc4b3]} 35. Qxc4 Qxc4 36. bxc4 Ne6) 35. Be3 {[%emt 0:00:03]} ({Better is} 35. Qxb5 $15 Rxb5 36. Be3) 35... Bd4 {[%emt 0:01:48]} (35... c4 $1 $17 {Hoping for ...Nc5.} 36. Rd5 Qc6) 36. Kf2 {[%emt 0:00:21]} Bxe3+ {[%emt 0:08:48]} 37. Kxe3 {[%emt 0:01:07]} Nd4 {[%emt 0:01:38]} (37... c4 $1 $17 38. Qxc4 Qxc4 39. bxc4 b3) 38. Qxb5 $11 {[%emt 0:00:05]} Rxb5 {[%emt 0:02:24]} 39. Ra7 {[%emt 0:00:05]} Kg8 {[%emt 0:00:53]} (39... Rf8 $11 {keeps the balance.}) 40. Rdd7 $16 {[%emt 0:00:41]} Rf8 {[%emt 0:00:54]} 41. e5 $1 {[%emt 0:32:43]} Rb6 {[%emt 0:08:58][%cal Od4c6]} (41... Nxb3 $2 42. e6 Re8 43. e7 $18) (41... Nc6 42. Rac7 Nxe5 43. Re7 $17) 42. Ne4 {[%emt 0:00:00]} Nxb3 $2 {[%emt 0:02:00][%mdl 8192]} (42... Nc6 $16) 43. Ng5 $18 {[%emt 0:00:00]} Nd4 {[%emt 0:00:50]} 44. Nxf7 {[%emt 0:00:00]} (44. Rxf7 $2 Rxf7 45. Rxf7 h6 $19) 44... g5 {[%emt 0:00:39]} 45. Nd6 {[%emt 0:00:00]} Rxf3+ {[%emt 0:06:39]} 46. Ke4 {[%emt 0:00:00][%cal Od6f5]} Nc6 {[%emt 0:04:24]} 47. Rac7 {[%emt 0:00:00][%cal Od6f5] Intending Nf5! and mate.} (47. Kxf3 Nxe5+ 48. Ke2 Nxd7 49. Rxd7 b3 50. Rd8+ Kg7 51. Nf5+ Kf6 $11) 47... Rf4+ {[%emt 0:00:19]} 48. Kd5 {[%emt 0:00:00]} b3 {[%emt 0:03:05]} 49. Nf5 {[%emt 0:00:00]} (49. Rxc6 Rxc6 50. Kxc6 b2 $11) (49. Kxc5 Nxe5 (49... b2 $2 50. Nf5 $18) 50. Rg7+ (50. Kxb6 $2 Nxd7+ 51. Kc6 Nb6 $19) 50... Kf8 51. Rxh7 (51. Kxb6 $2 b2 $19) 51... Rc6+ 52. Rxc6 Nxc6 53. Kxc6 Rb4 $16) (49. Rxh7 b2 (49... Rxg4 50. Rcg7+ Kf8 51. Rf7+ Kg8 52. Rhg7+ Kh8 53. Nf5 Nb4+ 54. Kxc5 Nd3+ 55. Kxb6) 50. Rcg7+ Kf8 $11) (49. Rg7+ $142 Kf8 50. Rgd7 (50. Rxc6 $2 Rd4+ 51. Kxc5 Rxc6+ 52. Kxc6 Kxg7 $19) (50. Rxg5 Ne7+ 51. Rxe7 Kxe7 $15) (50. Rxh7 Kg8 $18)) 49... Nb4+ {[%emt 0:04:56]} 50. Kxc5 {[%emt 0:00:00][%cal Rc7c8] White is more active.} Na6+ {[%emt 0:00:17]} 51. Kxb6 {[%emt 0:00:00]} Nxc7 {[%emt 0:00:04]} 52. Kxc7 {[%emt 0:00:00][%mdl 4096] Endgame. White wants to mate with e6. KRN-KR} b2 {[%emt 0:00:05]} 53. Rd8+ {[%emt 0:00:00]} Kf7 {[%emt 0:00:05]} 54. Rb8 {[%emt 0:00:00]} Ke6 {[%emt 0:00:23]} 55. Rxb2 {[%emt 0:04:13]} Rc4+ {[%emt 0:00:40]} 56. Kd8 {[%emt 0:00:09]} Rxg4 {[%emt 0:00:06]} 57. Ng3 {[%emt 0:00:28]} (57. h3 Ra4 $16) (57. Re2 $1 $18 {Ng7+ is the strong threat.} Kxf5 58. e6 Rd4+ 59. Kc7) 57... Kxe5 {[%emt 0:00:36]} 58. Ke7 {[%emt 0:01:23]} Ra4 {[%emt 0:00:45] [#]} (58... Rh4 $142 59. Rc2 Kf4 60. Rf2+ Ke3) 59. Rf2 $1 $16 {[%emt 0:01:49]} Ra7+ {[%emt 0:02:18]} 60. Kf8 {[%emt 0:00:04] aiming for Rf5+.} Kd4 {[%emt 0:02:39] [#]} 61. Rf3 {[%emt 0:01:24]} (61. Rf5 $142 $1 {[%cal Rf5g5]}) 61... Ra2 {[%emt 0:00:28]} 62. h3 {[%emt 0:00:04] And now Kg7 would win.} Ra7 {[%emt 0:02:03]} 63. Kg8 {[%emt 0:01:08] Strongly threatening Rb3.} h6 {[%emt 0:00:39][%cal Bh7h6,Bh6h5][%mdl 32]} 64. Rb3 {[%emt 0:00:23]} Ke5 {[%emt 0:00:20] Prevents Nf5} 65. Nh5 {[%emt 0:00:27]} Ra4 {[%emt 0:01:49]} 66. Kg7 {[%emt 0:01:03]} Rh4 {[%emt 0:00:25]} 67. Nf6 {[%emt 0:00:19]} h5 $1 {[%emt 0:00:37] Inhibits Ng4+.} 68. Kg6 {[%emt 0:00:40]} g4 {[%emt 0:00:08]} 69. Rb5+ {[%emt 0:00:25]} Kd4 {[%emt 0:00:35]} 70. hxg4 {[%emt 0:00:17]} (70. Nxh5 Kc4 71. Rb2 (71. Ra5 Kb4 $14) 71... g3 (71... gxh3 72. Rh2 $14)) 70... hxg4 {[%emt 0:00:04]} 71. Kg5 {[%emt 0:00:04]} Rh1 {[%emt 0:00:11]} 72. Nxg4 {[%emt 0:00:04]} Rf1 {[%emt 0:00:17]} 73. Rb8 {[%emt 0:00:09]} Kc5 {[%emt 0:00:27]} 74. Rd8 {[%emt 0:00:10]} Kc6 {[%emt 0:00:28]} 75. Rd2 {[%emt 0:00:22]} Kc5 {[%emt 0:00:34]} 76. Ne5 {[%emt 0:01:00]} Kb4 {[%emt 0:00:45]} 77. Rc2 {[%emt 0:00:08]} Kb3 {[%emt 0:00:30]} 78. Rc8 {[%emt 0:00:05]} Rf2 {[%emt 0:00:28]} 79. Kg4 {[%emt 0:00:33]} Rf6 {[%emt 0:00:25]} 80. Nd3 {[%emt 0:00:16]} (80. Rb8+ Ka4) 80... Rf7 {[%emt 0:00:24]} 81. Nf4 {[%emt 0:00:14]} Re7 {[%emt 0:00:24]} 82. Kf3 {[%emt 0:00:22]} Re5 {[%emt 0:00:19]} 83. Nd3 {[%emt 0:00:28]} Re7 {[%emt 0:00:17]} 84. Kf4 {[%emt 0:00:25]} Rh7 {[%emt 0:01:00]} 85. Ke4 {[%emt 0:00:13]} Rh4+ {[%emt 0:00:17]} 86. Kd5 {[%emt 0:00:12]} Rh5+ {[%emt 0:00:18]} 87. Ne5 {[%emt 0:00:12]} Rh4 {[%emt 0:00:20]} 88. Nf3 {[%emt 0:00:28]} Rh5+ {[%emt 0:00:18]} 89. Kd4 {[%emt 0:00:46]} Kb4 {[%emt 0:00:36]} 90. Rc1 {[%emt 0:02:16]} Kb5 {[%emt 0:00:48]} 91. Ne5 {[%emt 0:00:31]} Rh4+ {[%emt 0:00:45]} 92. Kd5 {[%emt 0:00:05]} Kb4 {[%emt 0:00:10]} 93. Nc6+ {[%emt 0:00:24]} Kb3 {[%emt 0:00:44]} 94. Nd4+ {[%emt 0:00:05]} (94. Nb8 Rh3 $16) 94... Kb2 {[%emt 0:00:17]} 95. Rc2+ {[%emt 0:00:14]} Kb1 {[%emt 0:00:09][%cal Oh4d4]} 96. Rg2 {[%emt 0:00:39]} Kc1 {[%emt 0:01:34]} 97. Kc5 {[%emt 0:01:46]} Rh8 {[%emt 0:00:14]} 98. Kc4 {[%emt 0:00:13]} Kd1 {[%emt 0:00:17] The position is equal.} 99. Ra2 {[%emt 0:01:10]} Ke1 {[%emt 0:00:21]} 100. Kd3 {[%emt 0:00:07]} Rg8 {[%emt 0:01:21]} 101. Rh2 {[%emt 0:01:31]} Rd8 {[%emt 0:01:00]} 102. Re2+ {[%emt 0:00:56]} Kf1 {[%emt 0:00:06]} 103. Ra2 {[%emt 0:00:13]} Rd7 {[%emt 0:00:52]} 104. Ke3 {[%emt 0:00:36]} Re7+ {[%emt 0:00:16]} 105. Kf4 {[%emt 0:00:03]} Rf7+ {[%emt 0:00:10]} 106. Nf5 {[%emt 0:00:05]} Rf8 {[%emt 0:00:08]} 107. Ke4 {[%emt 0:00:21]} Ke1 {[%emt 0:00:49]} 108. Ng3 {[%emt 0:01:22]} Kd1 {[%emt 0:00:48]} 109. Ne2 {[%emt 0:00:37]} Re8+ {[%emt 0:00:22]} 110. Kd3 {[%emt 0:00:04][%cal Ra2a1]} Rd8+ {[%emt 0:00:26]} 111. Nd4 {[%emt 0:00:04][%cal Ra2a1]} Ke1 {[%emt 0:00:09]} 112. Rb2 {[%emt 0:00:27]} Rd7 {[%emt 0:00:26]} 113. Ke3 {[%emt 0:00:41][%cal Rb2b1]} Re7+ {[%emt 0:00:12]} 114. Kf4 {[%emt 0:00:04]} Rf7+ {[%emt 0:00:22]} 115. Nf5 {[%emt 0:00:05][%cal Of4e3]} Kd1 {[%emt 0:00:25]} 116. Rh2 {[%emt 0:00:19]} Rf8 {[%emt 0:00:10]} 117. Ke4 {[%emt 0:00:06]} Re8+ {[%emt 0:00:51]} 118. Kd3 {[%emt 0:00:05] Threatening mate with Rh1+.} Rd8+ {[%emt 0:00:11]} 119. Nd4 {[%emt 0:00:03][%cal Rh2h1]} Ke1 {[%emt 0:00:10] White really could win this.   Weighted Error Value: White=0.33/Black=0.31.  Loses game:     	---       	Black=2      Missed win:     	White=1     	---        Mistake:       	White=5     	Black=6      Inaccurate:     	White=4     	Black=1      OK:         	White=27    	Black=41     Best:        	White=10    	Black=12     Strong:       	White=2     	Black=3} 1/2-1/2

[Event "Czech Extraliga 2024-25"]
[Site "Czechia"]
[Date "2024.11.03"]
[Round "2.7"]
[White "Rasik, Vitezslav"]
[Black "Kourousis, Epameinondas"]
[Result "1/2-1/2"]
[ECO "B11"]
[WhiteElo "2420"]
[BlackElo "2376"]
[Annotator "TA"]
[PlyCount "28"]
[EventDate "2024.09.12"]
[EventType "team-tourn"]
[EventCountry "CZE"]
[SourceTitle "playchess.com"]
[Source "ChessBase"]
[SourceQuality "1"]
[TimeControl "40/5400+30:1800+30"]

{[%evp 13,28,16,12,13,16,16,24,17,25,19,23,14,17,10,11,7,9]} 1. e4 {[%emt 0:00:08]} c6 {[%emt 0:00:40]} 2. Nc3 {[%emt 0:05:44]} d5 {[%emt 0:00:11]} 3. Nf3 {[%emt 0:00:07]} dxe4 {[%emt 0:01:20]} 4. Nxe4 {[%emt 0:00:17]} Nf6 {[%emt 0:00:02]} 5. Nxf6+ {[%emt 0:00:51]} exf6 {[%emt 0:00:01]} 6. Bc4 {[%emt 0:00:46]} Bd6 {[%emt 0:00:44]} 7. Qe2+ {[%emt 0:01:30]} Qe7 {[%emt 0:01:04]} 8. Qxe7+ {[%emt 0:01:03]} Kxe7 {[%emt 0:00:02]} 9. O-O {[%emt 0:00:52]} Re8 {[%emt 0:00:03]} 10. Re1+ {[%emt 0:06:35] White has an edge.} Kf8 {[%emt 0:00:12]} 11. Rxe8+ {[%emt 0:00:44]} Kxe8 {[%emt 0:00:02]} 12. d4 {[%emt 0:03:08]} Be6 {[%emt 0:00:16] The position is equal.} 13. Nd2 {[%emt 0:09:28]} Nd7 {[%emt 0:06:29]} 14. Bd3 {[%emt 0:09:01]} Rd8 {[%emt 0:35:30] Not much happened in this game.   Weighted Error Value: White=0.02 (flawless) /Black=0.01 (flawless) .  OK:         	White=4     	Black=3} 1/2-1/2